[Event "Titled Tuesday Blitz November 15 Early 2022"]
[White "Jobava, Baadur"]
[Black "Harshavardhan G B"]
[WhiteFideId "13601520"]
[BlackFideId "25059009"]
[WhiteElo "2582"]
[BlackElo "2333"]
[Result "1-0"]
[Round "04"]
[TimeControl "180+1"]
[Date "2022.11.15"]
[WhiteClock "0:00:52"]
[BlackClock "0:00:08"]

1. b3 {[%clk 0:02:59]}  d5 {[%clk 0:02:50]} 2. Bb2 {[%clk 0:03:00]}  Nf6 {[%clk 0:02:51]} 3. d3 {[%clk 0:03:01]}  g6 {[%clk 0:02:48]} 4. Nd2 {[%clk 0:03:00]}  Bg7 {[%clk 0:02:48]} 5. g3 {[%clk 0:03:01]}  O-O {[%clk 0:02:47]} 6. Bg2 {[%clk 0:03:01]}  c6 {[%clk 0:02:48]} 7. Ngf3 {[%clk 0:03:00]}  Bg4 {[%clk 0:02:48]} 8. O-O {[%clk 0:02:59]}  Nbd7 {[%clk 0:02:47]} 9. c4 {[%clk 0:02:57]}  Re8 {[%clk 0:02:45]} 10. Rc1 {[%clk 0:02:56]}  e5 {[%clk 0:02:43]} 11. h3 {[%clk 0:02:56]}  Bxf3 {[%clk 0:02:42]} 12. Nxf3 {[%clk 0:02:57]}  d4 {[%clk 0:02:39]} 13. b4 {[%clk 0:02:50]}  a5 {[%clk 0:02:37]} 14. b5 {[%clk 0:02:49]}  c5 {[%clk 0:02:37]} 15. Nd2 {[%clk 0:02:37]}  Rb8 {[%clk 0:02:35]} 16. e4 {[%clk 0:02:36]}  Nf8 {[%clk 0:02:20]} 17. h4 {[%clk 0:02:34]}  h5 {[%clk 0:02:19]} 18. Bh3 {[%clk 0:02:33]}  b6 {[%clk 0:02:17]} 19. Rc2 {[%clk 0:02:33]}  Bh6 {[%clk 0:02:14]} 20. Bc1 {[%clk 0:02:33]}  Ne6 {[%clk 0:02:12]} 21. Nf3 {[%clk 0:02:30]}  Bxc1 {[%clk 0:02:10]} 22. Qxc1 {[%clk 0:02:31]}  Qd6 {[%clk 0:02:06]} 23. Ne1 {[%clk 0:02:31]}  Ng4 {[%clk 0:01:38]} 24. Ng2 {[%clk 0:02:28]}  Rbd8 {[%clk 0:01:25]} 25. Re2 {[%clk 0:02:21]}  Ng7 {[%clk 0:00:57]} 26. f3 {[%clk 0:02:18]}  Ne3 {[%clk 0:00:52]} 27. Nxe3 {[%clk 0:02:18]}  dxe3 {[%clk 0:00:53]} 28. Rxe3 {[%clk 0:02:19]}  Qe7 {[%clk 0:00:50]} 29. Rf2 {[%clk 0:02:06]}  Rd6 {[%clk 0:00:50]} 30. Bf1 {[%clk 0:02:04]}  Red8 {[%clk 0:00:49]} 31. Qe1 {[%clk 0:02:02]}  Ne6 {[%clk 0:00:48]} 32. Rg2 {[%clk 0:01:51]}  Kg7 {[%clk 0:00:46]} 33. Qf2 {[%clk 0:01:51]}  Qf6 {[%clk 0:00:45]} 34. Rh2 {[%clk 0:01:41]}  Kg8 {[%clk 0:00:39]} 35. Re1 {[%clk 0:01:39]}  Rxd3 {[%clk 0:00:36]} 36. Bxd3 {[%clk 0:01:39]}  Rxd3 {[%clk 0:00:37]} 37. Re3 {[%clk 0:01:29]}  Rd1+ {[%clk 0:00:36]} 38. Kg2 {[%clk 0:01:30]}  Nd4 {[%clk 0:00:34]} 39. Rh1 {[%clk 0:01:29]}  Rxh1 {[%clk 0:00:31]} 40. Kxh1 {[%clk 0:01:30]}  Qe6 {[%clk 0:00:32]} 41. Rc3 {[%clk 0:01:24]}  Qh3+ {[%clk 0:00:31]} 42. Kg1 {[%clk 0:01:25]}  Qe6 {[%clk 0:00:29]} 43. Kg2 {[%clk 0:01:24]}  Kg7 {[%clk 0:00:29]} 44. Qe3 {[%clk 0:01:20]}  Qe7 {[%clk 0:00:24]} 45. a4 {[%clk 0:01:18]}  Qe6 {[%clk 0:00:23]} 46. Rc1 {[%clk 0:01:18]}  Qe7 {[%clk 0:00:20]} 47. Qd3 {[%clk 0:01:18]}  Qf6 {[%clk 0:00:19]} 48. Rf1 {[%clk 0:01:18]}  Qe7 {[%clk 0:00:17]} 49. Rf2 {[%clk 0:01:17]}  Qe6 {[%clk 0:00:16]} 50. f4 {[%clk 0:01:08]}  exf4 {[%clk 0:00:16]} 51. Rxf4 {[%clk 0:01:09]}  Qe7 {[%clk 0:00:16]} 52. Rf2 {[%clk 0:01:03]}  Qe5 {[%clk 0:00:15]} 53. Qe3 {[%clk 0:01:03]}  f6 {[%clk 0:00:15]} 54. Qf4 {[%clk 0:01:02]}  Qe7 {[%clk 0:00:14]} 55. Kh2 {[%clk 0:00:56]}  Ne6 {[%clk 0:00:09]} 56. Qb8 {[%clk 0:00:53]}  Nd4 {[%clk 0:00:09]} 57. Qxb6 {[%clk 0:00:52]}  Qxe4 {[%clk 0:00:09]} 58. Qxf6+ {[%clk 0:00:52]}  Kh7 {[%clk 0:00:08]} 59. Qf7+ {[%clk 0:00:52]} 1-0


[Site "https://www.chess.com"]

[Event "Titled Tuesday Blitz November 15 Early 2022"]
[White "Johnson, Ben"]
[Black "Mrudul Dehankar"]
[WhiteFideId "2010917"]
[BlackFideId "25096990"]
[WhiteElo "2116"]
[BlackElo "2068"]
[Result "1-0"]
[Round "04"]
[TimeControl "180+1"]
[Date "2022.11.16"]
[WhiteClock "0:00:01"]
[BlackClock "0:00:01"]

1. Nf3 {[%clk 0:03:00]}  Nf6 {[%clk 0:02:58]} 2. c4 {[%clk 0:03:00]}  e6 {[%clk 0:02:58]} 3. b3 {[%clk 0:02:55]}  b6 {[%clk 0:02:58]} 4. Bb2 {[%clk 0:02:54]}  Bb7 {[%clk 0:02:58]} 5. Qc2 {[%clk 0:02:41]}  d6 {[%clk 0:02:56]} 6. Nc3 {[%clk 0:02:35]}  Nbd7 {[%clk 0:02:54]} 7. g3 {[%clk 0:02:30]}  g6 {[%clk 0:02:54]} 8. Bg2 {[%clk 0:02:30]}  Bg7 {[%clk 0:02:54]} 9. O-O {[%clk 0:02:30]}  O-O {[%clk 0:02:54]} 10. d4 {[%clk 0:02:22]}  Qe7 {[%clk 0:02:51]} 11. e4 {[%clk 0:02:19]}  Ne8 {[%clk 0:02:48]} 12. Rad1 {[%clk 0:02:11]}  c5 {[%clk 0:02:30]} 13. Rfe1 {[%clk 0:01:56]}  Nc7 {[%clk 0:02:29]} 14. dxc5 {[%clk 0:01:30]}  dxc5 {[%clk 0:02:23]} 15. Na4 {[%clk 0:01:15]}  Rfd8 {[%clk 0:02:19]} 16. Bxg7 {[%clk 0:01:13]}  Kxg7 {[%clk 0:02:19]} 17. e5 {[%clk 0:01:03]}  Bc6 {[%clk 0:01:25]} 18. Nc3 {[%clk 0:01:02]}  Ne8 {[%clk 0:01:15]} 19. a4 {[%clk 0:01:00]}  Nf8 {[%clk 0:01:07]} 20. Nb5 {[%clk 0:00:57]}  a6 {[%clk 0:01:00]} 21. Nc3 {[%clk 0:00:56]}  Qb7 {[%clk 0:00:54]} 22. Nh4 {[%clk 0:00:53]}  Bxg2 {[%clk 0:00:50]} 23. Nxg2 {[%clk 0:00:54]}  Qc6 {[%clk 0:00:39]} 24. Qe4 {[%clk 0:00:49]}  Qc7 {[%clk 0:00:29]} 25. Qf4 {[%clk 0:00:47]}  Rxd1 {[%clk 0:00:26]} 26. Rxd1 {[%clk 0:00:45]}  Rd8 {[%clk 0:00:26]} 27. h4 {[%clk 0:00:40]}  h6 {[%clk 0:00:23]} 28. Ne3 {[%clk 0:00:37]}  Nd7 {[%clk 0:00:20]} 29. Ne4 {[%clk 0:00:28]}  Kg8 {[%clk 0:00:13]} 30. g4 {[%clk 0:00:25]}  Ng7 {[%clk 0:00:11]} 31. Kg2 {[%clk 0:00:18]}  Qb7 {[%clk 0:00:09]} 32. f3 {[%clk 0:00:16]}  Qc7 {[%clk 0:00:03]} 33. Nd6 {[%clk 0:00:09]}  Nf8 {[%clk 0:00:02]} 34. Kg3 {[%clk 0:00:07]}  Rd7 {[%clk 0:00:02]} 35. Ne4 {[%clk 0:00:05]}  Nh7 {[%clk 0:00:02]} 36. Rxd7 {[%clk 0:00:04]}  Qxd7 {[%clk 0:00:03]} 37. Nf6+ {[%clk 0:00:04]}  Nxf6 {[%clk 0:00:03]} 38. exf6 {[%clk 0:00:04]}  Ne8 {[%clk 0:00:04]} 39. Qxh6 {[%clk 0:00:01]}  Nxf6 {[%clk 0:00:03]} 40. h5 {[%clk 0:00:02]}  Qd2 {[%clk 0:00:01]} 41. hxg6 {[%clk 0:00:02]}  Qe1+ {[%clk 0:00:01]} 42. Kf4 {[%clk 0:00:01]} 1-0


[Site "https://www.chess.com"]

[Event "Titled Tuesday Blitz November 15 Early 2022"]
[White "Khamdamova, Afruza"]
[Black "Tristan, Leonardo"]
[WhiteFideId "14210444"]
[BlackFideId "113816"]
[WhiteElo "2018"]
[BlackElo "2461"]
[Result "0-1"]
[Round "04"]
[TimeControl "180+1"]
[Date "2022.11.16"]
[WhiteClock "0:00:02"]
[BlackClock "0:00:25"]

1. e4 {[%clk 0:03:00]}  d5 {[%clk 0:02:59]} 2. exd5 {[%clk 0:03:00]}  Qxd5 {[%clk 0:03:00]} 3. Nc3 {[%clk 0:03:00]}  Qa5 {[%clk 0:03:00]} 4. d4 {[%clk 0:02:59]}  Nf6 {[%clk 0:03:01]} 5. Nf3 {[%clk 0:02:58]}  Bf5 {[%clk 0:03:00]} 6. Bd2 {[%clk 0:02:49]}  e6 {[%clk 0:02:58]} 7. Ne4 {[%clk 0:02:34]}  Qb6 {[%clk 0:02:58]} 8. Nxf6+ {[%clk 0:02:31]}  gxf6 {[%clk 0:02:59]} 9. b3 {[%clk 0:02:24]}  a5 {[%clk 0:02:51]} 10. g3 {[%clk 0:02:18]}  a4 {[%clk 0:02:51]} 11. Bg2 {[%clk 0:02:15]}  Nc6 {[%clk 0:02:42]} 12. O-O {[%clk 0:02:06]}  axb3 {[%clk 0:02:29]} 13. cxb3 {[%clk 0:01:59]}  Rd8 {[%clk 0:02:27]} 14. Be3 {[%clk 0:01:57]}  Nb4 {[%clk 0:02:21]} 15. Ne1 {[%clk 0:01:24]}  Nd5 {[%clk 0:02:17]} 16. Rc1 {[%clk 0:01:09]}  h5 {[%clk 0:02:16]} 17. h4 {[%clk 0:01:09]}  Bg4 {[%clk 0:02:14]} 18. Qc2 {[%clk 0:01:05]}  Nxe3 {[%clk 0:02:08]} 19. fxe3 {[%clk 0:01:04]}  Bh6 {[%clk 0:02:09]} 20. Qf2 {[%clk 0:01:03]}  f5 {[%clk 0:01:46]} 21. Nd3 {[%clk 0:01:00]}  c6 {[%clk 0:01:40]} 22. Ne5 {[%clk 0:00:59]}  Bg7 {[%clk 0:01:37]} 23. Nxg4 {[%clk 0:00:52]}  hxg4 {[%clk 0:01:37]} 24. Rcd1 {[%clk 0:00:51]}  Qc7 {[%clk 0:01:20]} 25. e4 {[%clk 0:00:50]}  fxe4 {[%clk 0:01:20]} 26. Bxe4 {[%clk 0:00:49]}  O-O {[%clk 0:01:17]} 27. Kg2 {[%clk 0:00:47]}  f5 {[%clk 0:01:18]} 28. Bc2 {[%clk 0:00:39]}  Qd7 {[%clk 0:01:15]} 29. Rd3 {[%clk 0:00:23]}  Bxd4 {[%clk 0:01:12]} 30. Rfd1 {[%clk 0:00:23]}  c5 {[%clk 0:01:11]} 31. Qe2 {[%clk 0:00:22]}  Qc6+ {[%clk 0:01:05]} 32. Kh2 {[%clk 0:00:22]}  Rd5 {[%clk 0:01:05]} 33. b4 {[%clk 0:00:22]}  b6 {[%clk 0:01:05]} 34. Bb3 {[%clk 0:00:21]}  Re5 {[%clk 0:01:05]} 35. Qd2 {[%clk 0:00:20]}  Kf7 {[%clk 0:00:53]} 36. bxc5 {[%clk 0:00:19]}  bxc5 {[%clk 0:00:53]} 37. Qh6 {[%clk 0:00:19]}  Rg8 {[%clk 0:00:52]} 38. Qh5+ {[%clk 0:00:18]}  Kf8 {[%clk 0:00:44]} 39. Qh6+ {[%clk 0:00:18]}  Rg7 {[%clk 0:00:43]} 40. Qh8+ {[%clk 0:00:17]}  Kf7 {[%clk 0:00:42]} 41. Qh5+ {[%clk 0:00:17]}  Ke7 {[%clk 0:00:43]} 42. R1d2 {[%clk 0:00:14]}  Re1 {[%clk 0:00:42]} 43. Rg2 {[%clk 0:00:14]}  Bg1+ {[%clk 0:00:38]} 44. Kh1 {[%clk 0:00:09]}  Bd4+ {[%clk 0:00:29]} 45. Kh2 {[%clk 0:00:09]}  Qe4 {[%clk 0:00:29]} 46. Rdd2 {[%clk 0:00:07]}  f4 {[%clk 0:00:26]} 47. Ba4 {[%clk 0:00:02]}  fxg3+ {[%clk 0:00:26]} 48. Rxg3 {[%clk 0:00:02]}  Qh1# {[%clk 0:00:25]} 0-1


[Site "https://www.chess.com"]

[Event "Titled Tuesday Blitz November 15 Early 2022"]
[White "Kleiman, Jake"]
[Black "Deuer, Marius"]
[WhiteFideId "2020041"]
[BlackFideId "16236432"]
[WhiteElo "2610"]
[BlackElo "2226"]
[Result "1-0"]
[Round "04"]
[TimeControl "180+1"]
[Date "2022.11.16"]
[WhiteClock "0:02:16"]
[BlackClock "0:01:55"]

1. e4 {[%clk 0:03:00]}  c5 {[%clk 0:02:54]} 2. c3 {[%clk 0:03:01]}  Nf6 {[%clk 0:02:52]} 3. e5 {[%clk 0:03:01]}  Nd5 {[%clk 0:02:53]} 4. Bc4 {[%clk 0:03:02]}  Nb6 {[%clk 0:02:52]} 5. Bb3 {[%clk 0:03:02]}  Nc6 {[%clk 0:02:52]} 6. Nf3 {[%clk 0:03:03]}  d6 {[%clk 0:02:52]} 7. exd6 {[%clk 0:03:04]}  exd6 {[%clk 0:02:52]} 8. d4 {[%clk 0:03:03]}  cxd4 {[%clk 0:02:49]} 9. Nxd4 {[%clk 0:03:04]}  Be7 {[%clk 0:02:47]} 10. O-O {[%clk 0:03:04]}  O-O {[%clk 0:02:48]} 11. Re1 {[%clk 0:03:02]}  Bf6 {[%clk 0:02:48]} 12. Nb5 {[%clk 0:02:50]}  d5 {[%clk 0:02:31]} 13. Bf4 {[%clk 0:02:48]}  Bf5 {[%clk 0:02:26]} 14. Nd6 {[%clk 0:02:17]}  Be6 {[%clk 0:02:17]} 15. Nxb7 {[%clk 0:02:17]}  Rc8 {[%clk 0:01:55]} 16. Nxd8 {[%clk 0:02:16]}  Rcxd8 {[%clk 0:01:55]} 1-0


[Site "https://www.chess.com"]

[Event "Titled Tuesday Blitz November 15 Early 2022"]
[White "Kobo, Ori"]
[Black "Garagulya, Konstantin"]
[WhiteFideId "2812320"]
[BlackFideId "4128931"]
[WhiteElo "2447"]
[BlackElo "2329"]
[Result "1-0"]
[Round "04"]
[TimeControl "180+1"]
[Date "2022.11.16"]
[WhiteClock "0:01:16"]
[BlackClock "0:00:29"]

1. e4 {[%clk 0:02:59]}  c5 {[%clk 0:02:53]} 2. Nc3 {[%clk 0:02:59]}  a6 {[%clk 0:02:53]} 3. Nge2 {[%clk 0:02:58]}  b5 {[%clk 0:02:53]} 4. g3 {[%clk 0:02:59]}  Bb7 {[%clk 0:02:53]} 5. Bg2 {[%clk 0:02:59]}  e6 {[%clk 0:02:52]} 6. d4 {[%clk 0:02:58]}  cxd4 {[%clk 0:02:50]} 7. Nxd4 {[%clk 0:02:58]}  d6 {[%clk 0:02:47]} 8. O-O {[%clk 0:02:58]}  Nd7 {[%clk 0:02:48]} 9. a4 {[%clk 0:02:56]}  b4 {[%clk 0:02:47]} 10. Na2 {[%clk 0:02:56]}  a5 {[%clk 0:02:46]} 11. c3 {[%clk 0:02:56]}  bxc3 {[%clk 0:02:45]} 12. Nxc3 {[%clk 0:02:56]}  Ngf6 {[%clk 0:02:44]} 13. Re1 {[%clk 0:02:49]}  Nc5 {[%clk 0:02:40]} 14. Ndb5 {[%clk 0:02:37]}  Be7 {[%clk 0:02:09]} 15. Bf4 {[%clk 0:02:37]}  e5 {[%clk 0:02:09]} 16. Bg5 {[%clk 0:02:37]}  O-O {[%clk 0:02:09]} 17. Bxf6 {[%clk 0:02:34]}  Bxf6 {[%clk 0:02:07]} 18. Nxd6 {[%clk 0:02:28]}  Bc6 {[%clk 0:02:07]} 19. Ndb5 {[%clk 0:02:16]}  Nd3 {[%clk 0:01:59]} 20. Re2 {[%clk 0:02:15]}  Nb4 {[%clk 0:01:55]} 21. Nd5 {[%clk 0:02:07]}  Be7 {[%clk 0:01:38]} 22. Rc1 {[%clk 0:01:57]}  Rc8 {[%clk 0:01:36]} 23. Na7 {[%clk 0:01:41]}  Re8 {[%clk 0:01:27]} 24. Nxc8 {[%clk 0:01:39]}  Qxc8 {[%clk 0:01:28]} 25. Nxb4 {[%clk 0:01:34]}  Bxb4 {[%clk 0:01:09]} 26. Rec2 {[%clk 0:01:26]}  Re6 {[%clk 0:00:34]} 27. Bh3 {[%clk 0:01:20]}  Qe8 {[%clk 0:00:28]} 28. Bxe6 {[%clk 0:01:19]}  Bxa4 {[%clk 0:00:29]} 29. Rc8 {[%clk 0:01:16]} 1-0


[Site "https://www.chess.com"]

[Event "Titled Tuesday Blitz November 15 Early 2022"]
[White "Korchmar, Vasiliy"]
[Black "Seemann, Jakub"]
[WhiteFideId "24131750"]
[BlackFideId "21874697"]
[WhiteElo "2370"]
[BlackElo "2275"]
[Result "0-1"]
[Round "04"]
[TimeControl "180+1"]
[Date "2022.11.16"]
[WhiteClock "0:00:05"]
[BlackClock "0:00:52"]

1. e4 {[%clk 0:02:43]}  e6 {[%clk 0:02:59]} 2. d4 {[%clk 0:02:43]}  d5 {[%clk 0:02:58]} 3. e5 {[%clk 0:02:43]}  c5 {[%clk 0:02:57]} 4. c3 {[%clk 0:02:43]}  Bd7 {[%clk 0:02:57]} 5. Nf3 {[%clk 0:02:42]}  Qb6 {[%clk 0:02:57]} 6. c4 {[%clk 0:02:20]}  dxc4 {[%clk 0:02:52]} 7. d5 {[%clk 0:02:20]}  exd5 {[%clk 0:02:46]} 8. Nc3 {[%clk 0:02:09]}  d4 {[%clk 0:02:31]} 9. Nd5 {[%clk 0:02:07]}  Qd8 {[%clk 0:02:13]} 10. Bxc4 {[%clk 0:02:08]}  Be6 {[%clk 0:02:13]} 11. Bg5 {[%clk 0:01:37]}  Ne7 {[%clk 0:02:05]} 12. Nxe7 {[%clk 0:01:13]}  Bxe7 {[%clk 0:01:54]} 13. Bxe6 {[%clk 0:01:13]}  fxe6 {[%clk 0:01:51]} 14. Bxe7 {[%clk 0:01:08]}  Qxe7 {[%clk 0:01:52]} 15. b4 {[%clk 0:01:09]}  O-O {[%clk 0:01:46]} 16. bxc5 {[%clk 0:01:08]}  Nc6 {[%clk 0:01:46]} 17. Rc1 {[%clk 0:01:02]}  Rad8 {[%clk 0:01:42]} 18. Qd3 {[%clk 0:00:55]}  Rd5 {[%clk 0:01:35]} 19. O-O {[%clk 0:00:53]}  Rxc5 {[%clk 0:01:28]} 20. Nxd4 {[%clk 0:00:48]}  Rxc1 {[%clk 0:00:58]} 21. Rxc1 {[%clk 0:00:49]}  Qd7 {[%clk 0:00:58]} 22. Rc4 {[%clk 0:00:10]}  Nxe5 {[%clk 0:00:53]} 23. Qc3 {[%clk 0:00:04]}  Nxc4 {[%clk 0:00:52]} 24. Qxc4 {[%clk 0:00:05]}  Rd8 {[%clk 0:00:52]} 0-1


[Site "https://www.chess.com"]

[Event "Titled Tuesday Blitz November 15 Early 2022"]
[White "Koridze, Lile"]
[Black "Simonovic, Miroslav"]
[WhiteFideId "13612514"]
[BlackFideId "919152"]
[WhiteElo "2050"]
[BlackElo "2043"]
[Result "0-1"]
[Round "04"]
[TimeControl "180+1"]
[Date "2022.11.16"]
[WhiteClock "0:01:22"]
[BlackClock "0:00:15"]

1. d4 {[%clk 0:03:00]}  Nf6 {[%clk 0:02:59]} 2. c4 {[%clk 0:03:01]}  c5 {[%clk 0:03:00]} 3. d5 {[%clk 0:03:01]}  b5 {[%clk 0:03:00]} 4. cxb5 {[%clk 0:03:01]}  a6 {[%clk 0:03:01]} 5. bxa6 {[%clk 0:03:01]}  Bxa6 {[%clk 0:03:02]} 6. Nc3 {[%clk 0:03:01]}  d6 {[%clk 0:03:03]} 7. e4 {[%clk 0:03:02]}  Bxf1 {[%clk 0:03:03]} 8. Kxf1 {[%clk 0:03:03]}  Nbd7 {[%clk 0:03:04]} 9. g3 {[%clk 0:03:03]}  g6 {[%clk 0:03:05]} 10. Kg2 {[%clk 0:03:04]}  Bg7 {[%clk 0:03:05]} 11. Nf3 {[%clk 0:03:04]}  O-O {[%clk 0:03:06]} 12. Qe2 {[%clk 0:03:05]}  Qa5 {[%clk 0:03:06]} 13. Nd2 {[%clk 0:03:05]}  Rfb8 {[%clk 0:03:03]} 14. Nc4 {[%clk 0:02:58]}  Qa6 {[%clk 0:03:01]} 15. Re1 {[%clk 0:02:54]}  Rb4 {[%clk 0:02:44]} 16. Nd2 {[%clk 0:02:53]}  Qxe2 {[%clk 0:02:27]} 17. Rxe2 {[%clk 0:02:53]}  Ne5 {[%clk 0:02:28]} 18. a3 {[%clk 0:02:49]}  Rb7 {[%clk 0:02:17]} 19. f4 {[%clk 0:02:49]}  Nd3 {[%clk 0:02:16]} 20. Nc4 {[%clk 0:02:44]}  Nxc1 {[%clk 0:02:07]} 21. Rxc1 {[%clk 0:02:43]}  Nd7 {[%clk 0:02:03]} 22. e5 {[%clk 0:02:28]}  Nb6 {[%clk 0:02:02]} 23. Ne4 {[%clk 0:02:15]}  Nxc4 {[%clk 0:01:45]} 24. Rxc4 {[%clk 0:02:14]}  Ra6 {[%clk 0:01:02]} 25. exd6 {[%clk 0:02:08]}  exd6 {[%clk 0:01:03]} 26. b4 {[%clk 0:02:01]}  f5 {[%clk 0:00:42]} 27. Ng5 {[%clk 0:01:57]}  Bd4 {[%clk 0:00:23]} 28. bxc5 {[%clk 0:01:50]}  Bxc5 {[%clk 0:00:20]} 29. a4 {[%clk 0:01:49]}  Rba7 {[%clk 0:00:18]} 30. Re8+ {[%clk 0:01:43]}  Kg7 {[%clk 0:00:18]} 31. Ne6+ {[%clk 0:01:36]}  Kf7 {[%clk 0:00:18]} 32. Rh8 {[%clk 0:01:36]}  Rxa4 {[%clk 0:00:15]} 33. Rxh7+ {[%clk 0:01:30]}  Ke8 {[%clk 0:00:16]} 34. Rxa4 {[%clk 0:01:27]}  Rxa4 {[%clk 0:00:17]} 35. Rg7 {[%clk 0:01:25]}  Ra2+ {[%clk 0:00:15]} 36. Kf3 {[%clk 0:01:22]}  Rf2# {[%clk 0:00:15]} 0-1


[Site "https://www.chess.com"]

[Event "Titled Tuesday Blitz November 15 Early 2022"]
[White "Kostiukov, Alexandr"]
[Black "Seifert, Henryk"]
[WhiteFideId "14108100"]
[BlackFideId "1100963"]
[WhiteElo "2202"]
[BlackElo "2120"]
[Result "1-0"]
[Round "04"]
[TimeControl "180+1"]
[Date "2022.11.16"]
[WhiteClock "0:00:23"]
[BlackClock "0:00:01"]

1. g3 {[%clk 0:03:00]}  d5 {[%clk 0:02:59]} 2. Bg2 {[%clk 0:03:01]}  c6 {[%clk 0:02:59]} 3. d3 {[%clk 0:03:01]}  Nf6 {[%clk 0:02:59]} 4. e4 {[%clk 0:03:02]}  dxe4 {[%clk 0:02:57]} 5. dxe4 {[%clk 0:03:03]}  Qxd1+ {[%clk 0:02:56]} 6. Kxd1 {[%clk 0:03:02]}  e5 {[%clk 0:02:55]} 7. f3 {[%clk 0:03:01]}  Bc5 {[%clk 0:02:51]} 8. Nd2 {[%clk 0:03:00]}  a5 {[%clk 0:02:49]} 9. a4 {[%clk 0:02:59]}  h5 {[%clk 0:02:47]} 10. h4 {[%clk 0:02:58]}  Be6 {[%clk 0:02:44]} 11. Bh3 {[%clk 0:02:58]}  Bxg1 {[%clk 0:02:24]} 12. Bxe6 {[%clk 0:02:57]}  Bf2 {[%clk 0:02:23]} 13. Bc8 {[%clk 0:02:51]}  Bxg3 {[%clk 0:02:18]} 14. Bxb7 {[%clk 0:02:48]}  Ra7 {[%clk 0:02:18]} 15. Bc8 {[%clk 0:02:48]}  O-O {[%clk 0:01:53]} 16. Bh3 {[%clk 0:02:47]}  Na6 {[%clk 0:01:48]} 17. Nc4 {[%clk 0:02:42]}  Rd8+ {[%clk 0:01:41]} 18. Ke2 {[%clk 0:02:41]}  Nb4 {[%clk 0:01:35]} 19. c3 {[%clk 0:02:33]}  Nc2 {[%clk 0:01:30]} 20. Ra2 {[%clk 0:02:15]}  Bf4 {[%clk 0:01:23]} 21. Bxf4 {[%clk 0:02:08]}  exf4 {[%clk 0:01:24]} 22. b3 {[%clk 0:02:01]}  Ne3 {[%clk 0:01:12]} 23. Nxe3 {[%clk 0:02:01]}  fxe3 {[%clk 0:01:12]} 24. Kxe3 {[%clk 0:02:02]}  Rb7 {[%clk 0:01:07]} 25. Rb1 {[%clk 0:02:00]}  c5 {[%clk 0:01:03]} 26. Rab2 {[%clk 0:01:53]}  Re7 {[%clk 0:00:58]} 27. Rd2 {[%clk 0:01:32]}  Rde8 {[%clk 0:00:39]} 28. Bf1 {[%clk 0:01:21]}  Nxe4 {[%clk 0:00:36]} 29. fxe4 {[%clk 0:01:20]}  Rxe4+ {[%clk 0:00:37]} 30. Kf2 {[%clk 0:01:08]}  Rxh4 {[%clk 0:00:35]} 31. Re2 {[%clk 0:00:49]}  Rxe2+ {[%clk 0:00:27]} 32. Bxe2 {[%clk 0:00:47]}  Rh2+ {[%clk 0:00:26]} 33. Ke3 {[%clk 0:00:44]}  Rh3+ {[%clk 0:00:25]} 34. Kd2 {[%clk 0:00:44]}  g5 {[%clk 0:00:21]} 35. b4 {[%clk 0:00:35]}  cxb4 {[%clk 0:00:20]} 36. cxb4 {[%clk 0:00:36]}  axb4 {[%clk 0:00:19]} 37. Rxb4 {[%clk 0:00:37]}  Ra3 {[%clk 0:00:18]} 38. Rb5 {[%clk 0:00:34]}  f6 {[%clk 0:00:17]} 39. a5 {[%clk 0:00:33]}  Kg7 {[%clk 0:00:17]} 40. Bxh5 {[%clk 0:00:28]}  Kh6 {[%clk 0:00:12]} 41. Bd1 {[%clk 0:00:26]}  Kg6 {[%clk 0:00:05]} 42. Bc2+ {[%clk 0:00:26]}  Kh5 {[%clk 0:00:05]} 43. Kc1 {[%clk 0:00:24]}  Kh4 {[%clk 0:00:03]} 44. Kb2 {[%clk 0:00:25]}  Re3 {[%clk 0:00:02]} 45. a6 {[%clk 0:00:25]}  Re8 {[%clk 0:00:01]} 46. a7 {[%clk 0:00:23]}  Ra8 {[%clk 0:00:01]} 47. Ra5 {[%clk 0:00:23]} 1-0


[Site "https://www.chess.com"]

[Event "Titled Tuesday Blitz November 15 Early 2022"]
[White "Kouskoutis, Georgios-Alexandros"]
[Black "Martin, Lewis"]
[WhiteFideId "4234049"]
[BlackFideId "410551"]
[WhiteElo "2187"]
[BlackElo "2145"]
[Result "1-0"]
[Round "04"]
[TimeControl "180+1"]
[Date "2022.11.16"]
[WhiteClock "0:01:09"]
[BlackClock "0:01:45"]

1. Nf3 {[%clk 0:03:00]}  Nf6 {[%clk 0:02:59]} 2. g3 {[%clk 0:03:00]}  c5 {[%clk 0:02:58]} 3. Bg2 {[%clk 0:03:00]}  Nc6 {[%clk 0:02:57]} 4. O-O {[%clk 0:03:00]}  e5 {[%clk 0:02:56]} 5. c4 {[%clk 0:02:59]}  d6 {[%clk 0:02:52]} 6. Nc3 {[%clk 0:02:59]}  Be6 {[%clk 0:02:51]} 7. d3 {[%clk 0:02:59]}  h6 {[%clk 0:02:49]} 8. Rb1 {[%clk 0:02:55]}  Be7 {[%clk 0:02:47]} 9. a3 {[%clk 0:02:56]}  a5 {[%clk 0:02:45]} 10. Ne1 {[%clk 0:02:54]}  Qd7 {[%clk 0:02:43]} 11. Nd5 {[%clk 0:02:30]}  Bd8 {[%clk 0:02:42]} 12. Nc2 {[%clk 0:02:31]}  Bh3 {[%clk 0:02:34]} 13. f4 {[%clk 0:02:17]}  Bxg2 {[%clk 0:02:33]} 14. Kxg2 {[%clk 0:02:18]}  O-O {[%clk 0:02:29]} 15. f5 {[%clk 0:01:59]}  e4 {[%clk 0:02:15]} 16. Nxf6+ {[%clk 0:01:40]}  Bxf6 {[%clk 0:02:14]} 17. Ne3 {[%clk 0:01:41]}  exd3 {[%clk 0:02:10]} 18. exd3 {[%clk 0:01:42]}  Nd4 {[%clk 0:01:58]} 19. Nd5 {[%clk 0:01:39]}  Be5 {[%clk 0:01:52]} 20. f6 {[%clk 0:01:33]}  g5 {[%clk 0:01:48]} 21. Qh5 {[%clk 0:01:12]}  Nf5 {[%clk 0:01:46]} 22. Rxf5 {[%clk 0:01:10]}  Qxf5 {[%clk 0:01:45]} 23. Ne7+ {[%clk 0:01:09]} 1-0


[Site "https://www.chess.com"]

[Event "Titled Tuesday Blitz November 15 Early 2022"]
[White "Kovalev, Vladislav"]
[Black "Budrewicz, Krzysztof"]
[WhiteFideId "13504398"]
[BlackFideId "1127950"]
[WhiteElo "2556"]
[BlackElo "2187"]
[Result "1-0"]
[Round "04"]
[TimeControl "180+1"]
[Date "2022.11.15"]
[WhiteClock "0:00:56"]
[BlackClock "0:00:20"]

1. e4 {[%clk 0:02:58]}  g6 {[%clk 0:02:59]} 2. d4 {[%clk 0:02:58]}  Bg7 {[%clk 0:03:00]} 3. Be3 {[%clk 0:02:59]}  d6 {[%clk 0:03:00]} 4. f4 {[%clk 0:02:58]}  a6 {[%clk 0:02:58]} 5. Nf3 {[%clk 0:02:58]}  b5 {[%clk 0:02:58]} 6. Bd3 {[%clk 0:02:58]}  Nd7 {[%clk 0:02:57]} 7. O-O {[%clk 0:02:57]}  Bb7 {[%clk 0:02:55]} 8. a4 {[%clk 0:02:58]}  b4 {[%clk 0:02:55]} 9. a5 {[%clk 0:02:56]}  c5 {[%clk 0:02:54]} 10. c3 {[%clk 0:02:56]}  Nh6 {[%clk 0:02:50]} 11. Kh1 {[%clk 0:02:55]}  bxc3 {[%clk 0:02:45]} 12. bxc3 {[%clk 0:02:56]}  O-O {[%clk 0:02:45]} 13. Nbd2 {[%clk 0:02:56]}  cxd4 {[%clk 0:02:33]} 14. cxd4 {[%clk 0:02:56]}  e5 {[%clk 0:02:29]} 15. fxe5 {[%clk 0:02:54]}  dxe5 {[%clk 0:02:30]} 16. d5 {[%clk 0:02:55]}  Ng4 {[%clk 0:02:18]} 17. Bg1 {[%clk 0:02:55]}  Bh6 {[%clk 0:02:18]} 18. Nc4 {[%clk 0:02:54]}  Qe7 {[%clk 0:02:14]} 19. Rb1 {[%clk 0:02:45]}  Bc8 {[%clk 0:02:05]} 20. Qa4 {[%clk 0:02:30]}  Re8 {[%clk 0:01:53]} 21. Qc6 {[%clk 0:02:25]}  Rb8 {[%clk 0:01:51]} 22. Nd6 {[%clk 0:02:18]}  Rd8 {[%clk 0:01:32]} 23. Qc7 {[%clk 0:01:35]}  Ra8 {[%clk 0:00:57]} 24. Nxf7 {[%clk 0:01:27]}  Kxf7 {[%clk 0:00:20]} 25. Nxe5+ {[%clk 0:01:27]}  Kg8 {[%clk 0:00:20]} 26. Nxg4 {[%clk 0:01:07]}  Bf8 {[%clk 0:00:20]} 27. d6 {[%clk 0:00:56]} 1-0


[Site "https://www.chess.com"]